fUST/lending_fUST_20250630
["ID","MTS","AMOUNT","RATE_DAILY","PERIOD"]
[368598289,1751224242888,-3038.72,0.00019166,2]
[368598290,1751224242900,-460.0,0.00019166,2]
[368598291,1751224242910,-460.0,0.00019166,2]
[368598292,1751224242920,-3793.9,0.00019166,2]
[368598293,1751224242931,-481.9,0.00019166,2]
[368598296,1751224242942,-552.84,0.00019166,2]
[368598297,1751224242952,-1968.03,0.00019166,2]
[368598298,1751224242963,-460.0,0.00019166,2]
[368598299,1751224242974,-460.0,0.00019166,2]
[368598300,1751224242986,-1424.12,0.00019166,2]
[368598301,1751224242996,-272.83760827,0.00019167,2]
[368598302,1751224243006,-460.0,0.00019167,2]
[368598304,1751224243016,-460.0,0.00019167,2]
[368598305,1751224243027,-460.0,0.00019167,2]
[368598306,1751224243038,-857.04,0.00019167,2]
[368598307,1751224243048,-460.0,0.00019167,2]
[368598308,1751224243059,-460.0,0.00019167,2]
[368598310,1751224243070,-2854.37,0.00019167,2]
[368598312,1751224243081,-621.65,0.00019167,2]
[368598314,1751224243091,-460.0,0.00019167,2]
[368598317,1751224243103,-631.08,0.00019167,2]
[368598320,1751224243113,-504.29,0.00019167,2]
[368598322,1751224243124,-613.49,0.00019167,2]
[368598324,1751224243135,-1052.36,0.00019167,2]
[368598325,1751224243146,-460.0,0.00019167,2]
[368598326,1751224243156,-494.61,0.00019167,2]
[368598327,1751224243167,-460.0,0.00019167,2]
[368598328,1751224243177,-2774.43,0.00019167,2]
[368598329,1751224243188,-3648.95,0.00019167,2]
[368598330,1751224243199,-518.79,0.00019167,2]
[368598331,1751224243210,-460.0,0.00019167,2]
[368598332,1751224243222,-2010.22,0.00019167,2]
[368598333,1751224243234,-460.0,0.00019167,2]
[368598334,1751224243244,-1159.14,0.00019167,2]
[368598335,1751224243254,-500.15,0.00019167,2]
[368598336,1751224243264,-460.0,0.00019167,2]
[368598337,1751224243274,-477.89,0.00019167,2]
[368598338,1751224243285,-460.0,0.00019167,2]
[368598339,1751224243295,-461.32,0.00019167,2]
[368598340,1751224243306,-460.0,0.00019167,2]
[368598341,1751224243316,-460.0,0.00019167,2]
[368598342,1751224243327,-460.0,0.00019167,2]
[368598343,1751224243338,-460.0,0.00019167,2]
[368598344,1751224243349,-618.13,0.00019167,2]
[368598345,1751224243360,-476.24,0.00019167,2]
[368598346,1751224243371,-460.0,0.00019167,2]
[368598347,1751224243382,-460.0,0.00019168,2]
[368598348,1751224243393,-460.0,0.00019168,2]
[368598349,1751224243404,-460.0,0.00019168,2]
[368598350,1751224243414,-460.0,0.00019168,2]
[368598351,1751224243425,-460.0,0.00019168,2]
[368598352,1751224243434,-521.75,0.00019168,2]
[368598353,1751224243443,-654.38,0.00019168,2]
[368598354,1751224243453,-460.0,0.00019168,2]
[368598355,1751224243462,-460.0,0.00019168,2]
[368598356,1751224243471,-791.59,0.00019168,2]
[368598357,1751224243482,-460.0,0.00019168,2]
[368598358,1751224243492,-460.0,0.00019168,2]
[368598359,1751224243501,-762.07,0.00019168,2]
[368598360,1751224243511,-460.0,0.00019168,2]
[368598361,1751224243521,-460.0,0.00019168,2]
[368598362,1751224243531,-460.0,0.00019168,2]
[368598363,1751224243540,-710.97,0.00019168,2]
[368598364,1751224243550,-1750.91,0.00019168,2]
[368598365,1751224243560,-460.0,0.00019168,2]
[368598366,1751224243569,-497.75,0.00019168,2]
[368598367,1751224243579,-460.0,0.00019168,2]
[368598368,1751224243588,-460.0,0.00019168,2]
[368598369,1751224243598,-460.0,0.00019168,2]
[368598370,1751224243607,-1683.27,0.00019168,2]
[368598371,1751224243616,-4152.41,0.00019168,2]
[368598372,1751224243626,-591.31,0.00019168,2]
[368598373,1751224243635,-460.0,0.00019168,2]
[368598374,1751224243645,-710.3,0.00019168,2]
[368598375,1751224243655,-814.36,0.00019168,2]
[368598376,1751224243664,-807.28,0.00019168,2]
[368598379,1751224243865,-4836.22,0.00019168,2]
[368598380,1751224243881,-1061.58,0.00019168,2]
[368598381,1751224243895,-1185.62,0.00019168,2]
[368598382,1751224243906,-460.0,0.00019169,2]
[368598383,1751224243915,-1401.85,0.00019169,2]
[368598384,1751224243925,-460.0,0.00019169,2]
[368598385,1751224243935,-460.0,0.00019169,2]
[368598386,1751224243944,-462.37,0.0001917,2]
[368598387,1751224243954,-460.0,0.0001917,2]
[368598388,1751224243963,-598.69,0.0001917,2]
[368598389,1751224243973,-460.0,0.0001917,2]
[368598390,1751224243984,-460.0,0.0001917,2]
[368598391,1751224243993,-1000.37,0.0001917,2]
[368598392,1751224244003,-873.9,0.0001917,2]
[368598393,1751224244014,-768.49,0.0001917,2]
[368598394,1751224244023,-628.32,0.00019171,2]
[368598395,1751224244032,-460.0,0.00019171,2]
[368598396,1751224244041,-500.0,0.00019175,2]
[368598397,1751224244050,-500.0,0.00019175,2]
[368598398,1751224244059,-230.65643113,0.00019175,2]
[368598399,1751224244068,-449.92250371,0.00019175,2]
[368598400,1751224244079,-196.157347,0.00019178,2]
[368598401,1751224244089,-500.0,0.00019244,2]
[368598402,1751224244098,-500.0,0.00019244,2]
[368598403,1751224244107,-100000.0,0.00019329,2]
[368598404,1751224244116,-160.0,0.0001935,2]
[368598405,1751224244125,-160.0,0.0001935,2]
[368598406,1751224244134,-160.0,0.0001935,2]
[368598407,1751224244143,-160.0,0.0001935,2]
[368598408,1751224244153,-837.1293463,0.0001935,2]
[368598409,1751224244162,-12567.05932091,0.0001935,2]
[368598410,1751224244171,-230.30207649,0.0001935,2]
[368598411,1751224244181,-847.31290578,0.0001935,2]
[368598412,1751224244190,-213.82031328,0.0001935,2]
[368598413,1751224244199,-214.97967293,0.0001935,2]
[368598414,1751224244208,-160.0,0.0001935,2]
[368598415,1751224244217,-160.0,0.0001935,2]
[368598416,1751224244227,-524.48349001,0.0001935,2]
[368598417,1751224244237,-160.0,0.00019352,2]
[368598418,1751224244247,-160.0,0.00019352,2]
[368598419,1751224244256,-314.0,0.00019419,2]
[368598420,1751224244265,-314.0,0.00019429,2]
[368598421,1751224244274,-3038.72,0.0001944,2]
[368598422,1751224244284,-460.0,0.0001944,2]
[368598423,1751224244293,-460.0,0.0001944,2]
[368598424,1751224244303,-3793.9,0.0001944,2]
[368598425,1751224244312,-481.9,0.0001944,2]
[368598426,1751224244321,-552.84,0.0001944,2]
[368598427,1751224244330,-1968.03,0.0001944,2]
[368598428,1751224244342,-460.0,0.0001944,2]
[368598429,1751224244352,-1424.12,0.0001944,2]
[368598430,1751224244362,-460.0,0.00019441,2]
[368598431,1751224244371,-460.0,0.00019441,2]
[368598432,1751224244382,-857.04,0.00019441,2]
[368598433,1751224244391,-460.0,0.00019441,2]
[368598434,1751224244402,-460.0,0.00019441,2]
[368598435,1751224244412,-2854.37,0.00019441,2]
[368598436,1751224244422,-621.65,0.00019441,2]
[368598437,1751224244432,-460.0,0.00019441,2]
[368598438,1751224244441,-631.08,0.00019441,2]
[368598439,1751224244450,-504.29,0.00019441,2]
[368598440,1751224244459,-613.49,0.00019441,2]
[368598441,1751224244469,-1052.36,0.00019441,2]
[368598442,1751224244478,-460.0,0.00019441,2]
[368598443,1751224244488,-494.61,0.00019441,2]
[368598444,1751224244498,-460.0,0.00019441,2]
[368598445,1751224244507,-2774.43,0.00019441,2]
[368598446,1751224244517,-3648.95,0.00019441,2]
[368598447,1751224244526,-518.79,0.00019441,2]
[368598448,1751224244536,-2010.22,0.00019441,2]
[368598449,1751224244545,-460.0,0.00019441,2]
[368598450,1751224244555,-1159.14,0.00019441,2]
[368598451,1751224244564,-460.0,0.00019441,2]
[368598452,1751224244574,-477.89,0.00019441,2]
[368598453,1751224244584,-460.0,0.00019441,2]
[368598454,1751224244593,-461.32,0.00019441,2]
[368598455,1751224244602,-460.0,0.00019441,2]
[368598456,1751224244612,-460.0,0.00019441,2]
[368598457,1751224244621,-460.0,0.00019441,2]
[368598458,1751224244631,-618.13,0.00019441,2]
[368598459,1751224244640,-476.24,0.00019441,2]
[368598460,1751224244650,-460.0,0.00019441,2]
[368598461,1751224244659,-460.0,0.00019442,2]
[368598462,1751224244668,-173.85579856,0.00019442,2]
[368598463,1751224244678,-460.0,0.00019442,2]
[368598464,1751224244687,-460.0,0.00019442,2]
[368598465,1751224244696,-472.55,0.00019442,2]
[368598466,1751224244706,-521.75,0.00019442,2]
[368598467,1751224244715,-654.38,0.00019442,2]
[368598468,1751224244725,-791.59,0.00019442,2]
[368598469,1751224244736,-460.0,0.00019442,2]
[368598470,1751224244746,-460.0,0.00019442,2]
[368598471,1751224244756,-762.07,0.00019442,2]
[368598472,1751224244765,-460.0,0.00019442,2]
[368598473,1751224244775,-460.0,0.00019442,2]
[368598474,1751224244787,-710.97,0.00019442,2]
[368598475,1751224244796,-1750.91,0.00019442,2]
[368598476,1751224244806,-460.0,0.00019442,2]
[368598477,1751224244816,-497.75,0.00019442,2]
[368598478,1751224244827,-460.0,0.00019442,2]
[368598479,1751224244839,-460.0,0.00019442,2]
[368598480,1751224244849,-460.0,0.00019442,2]
[368598481,1751224244861,-1683.27,0.00019442,2]
[368598482,1751224244871,-4152.41,0.00019442,2]
[368598483,1751224244881,-591.31,0.00019442,2]
[368598484,1751224244891,-460.0,0.00019442,2]
[368598485,1751224244902,-710.3,0.00019442,2]
[368598486,1751224244911,-814.36,0.00019442,2]
[368598487,1751224244921,-807.28,0.00019442,2]
[368598488,1751224244932,-4836.22,0.00019442,2]
[368598489,1751224244941,-1061.58,0.00019442,2]
[368598490,1751224244951,-1185.62,0.00019442,2]
[368598491,1751224244962,-460.0,0.00019443,2]
[368598492,1751224244972,-1401.85,0.00019443,2]
[368598493,1751224244981,-460.0,0.00019443,2]
[368598494,1751224244991,-460.0,0.00019443,2]
[368598495,1751224245002,-462.37,0.00019444,2]
[368598496,1751224245012,-460.0,0.00019444,2]
[368598497,1751224245021,-598.69,0.00019444,2]
[368598498,1751224245030,-460.0,0.00019444,2]
[368598499,1751224245039,-460.0,0.00019444,2]
[368598500,1751224245050,-1000.37,0.00019444,2]
[368598501,1751224245060,-873.9,0.00019444,2]
[368598502,1751224245069,-768.49,0.00019444,2]
[368598503,1751224245079,-628.32,0.00019445,2]
[368598504,1751224245088,-318.4789722,0.00019452,2]
[368598505,1751224245098,-3767.0,0.00019544,2]
[368598506,1751224245107,-268.18450597,0.00019547,2]
[368598507,1751224245117,-1000.0,0.00019563,2]
[368598508,1751224245126,-1000.0,0.00019563,2]
[368598509,1751224245135,-977.70593546,0.00019563,2]
[368598510,1751224245144,-1000.0,0.00019563,2]
[368598511,1751224245154,-430.50900453,0.00019563,2]
[368598512,1751224245163,-1000.0,0.00019563,2]
[368598513,1751224245172,-500.0,0.00019563,2]
[368598514,1751224245182,-1000.0,0.00019563,2]
[368598515,1751224245191,-1000.0,0.00019563,2]
[368598516,1751224245200,-1000.0,0.0001958,2]
[368598517,1751224245209,-4430.0,0.000196,2]
[368598518,1751224245218,-511.5142067,0.00019648,2]
[368598519,1751224245228,-501.72407384,0.00019648,2]
[368598520,1751224245239,-1000.0,0.00019659,2]
[368598521,1751224245248,-1000.0,0.00019659,2]
[368598522,1751224245257,-1000.0,0.00019659,2]
[368598523,1751224245266,-460.0,0.00019659,2]
[368598524,1751224245275,-1000.0,0.00019659,2]
[368598525,1751224245284,-500.0,0.00019659,2]
[368598526,1751224245295,-1000.0,0.00019667,2]
[368598527,1751224245304,-314.0,0.00019667,2]
[368598528,1751224245313,-1000.0,0.00019681,2]
[368598529,1751224245322,-1474.03371567,0.00019711,2]
[368598530,1751224245331,-3038.72,0.00019714,2]
[368598531,1751224245340,-460.0,0.00019714,2]
[368598532,1751224245349,-3793.9,0.00019714,2]
[368598533,1751224245359,-481.9,0.00019714,2]
[368598534,1751224245368,-552.84,0.00019714,2]
[368598535,1751224245377,-1968.03,0.00019714,2]
[368598536,1751224245386,-460.0,0.00019714,2]
[368598537,1751224245395,-1424.12,0.00019714,2]
[368598538,1751224245404,-460.0,0.00019715,2]
[368598539,1751224245413,-857.04,0.00019715,2]
[368598540,1751224245422,-460.0,0.00019715,2]
[368598541,1751224245431,-460.0,0.00019715,2]
[368598542,1751224245441,-2854.37,0.00019715,2]
[368598543,1751224245450,-621.65,0.00019715,2]
[368598544,1751224245460,-460.0,0.00019715,2]
[368598545,1751224245469,-631.08,0.00019715,2]
[368598546,1751224245479,-504.29,0.00019715,2]
[368598547,1751224245489,-613.49,0.00019715,2]
[368598548,1751224245499,-1052.36,0.00019715,2]
[368598549,1751224245509,-460.0,0.00019715,2]
[368598550,1751224245518,-494.61,0.00019715,2]
[368598551,1751224245528,-460.0,0.00019715,2]
[368598552,1751224245537,-2774.43,0.00019715,2]
[368598553,1751224245546,-3648.95,0.00019715,2]
[368598554,1751224245556,-518.79,0.00019715,2]
[368598555,1751224245565,-2010.22,0.00019715,2]
[368598556,1751224245575,-1159.14,0.00019715,2]
[368598557,1751224245584,-460.0,0.00019715,2]
[368598558,1751224245593,-477.89,0.00019715,2]
[368598559,1751224245602,-460.0,0.00019715,2]
[368598560,1751224245612,-461.32,0.00019715,2]
[368598561,1751224245622,-460.0,0.00019715,2]
[368598562,1751224245631,-460.0,0.00019715,2]
[368598563,1751224245642,-460.0,0.00019715,2]
[368598564,1751224245651,-618.13,0.00019715,2]
[368598565,1751224245661,-476.24,0.00019715,2]
[368598566,1751224245670,-460.0,0.00019715,2]
[368598567,1751224245679,-460.0,0.00019716,2]
[368598568,1751224245689,-460.0,0.00019716,2]
[368598569,1751224245698,-460.0,0.00019716,2]
[368598570,1751224245708,-521.75,0.00019716,2]
[368598571,1751224245718,-654.38,0.00019716,2]
[368598572,1751224245728,-791.59,0.00019716,2]
[368598573,1751224245738,-460.0,0.00019716,2]
[368598574,1751224245748,-460.0,0.00019716,2]
[368598575,1751224245758,-762.07,0.00019716,2]
[368598576,1751224245767,-460.0,0.00019716,2]
[368598577,1751224245777,-460.0,0.00019716,2]
[368598578,1751224245786,-710.97,0.00019716,2]
[368598579,1751224245795,-1750.91,0.00019716,2]
[368598580,1751224245805,-460.0,0.00019716,2]
[368598581,1751224245814,-497.75,0.00019716,2]
[368598582,1751224245824,-460.0,0.00019716,2]
[368598583,1751224245833,-460.0,0.00019716,2]
[368598584,1751224245843,-303.46788031,0.00019716,2]
[368598585,1751224245852,-1683.27,0.00019716,2]
[368598586,1751224245866,-4152.41,0.00019716,2]
[368598587,1751224245877,-591.31,0.00019716,2]
[368598588,1751224245886,-460.0,0.00019716,2]
[368598590,1751224245895,-710.3,0.00019716,2]
[368598591,1751224245905,-814.36,0.00019716,2]
[368598592,1751224245915,-807.28,0.00019716,2]
[368598593,1751224245924,-4836.22,0.00019716,2]
[368598594,1751224245935,-1061.58,0.00019716,2]
[368598596,1751224245945,-1185.62,0.00019716,2]
[368598598,1751224245955,-1401.85,0.00019717,2]
[368598600,1751224245964,-460.0,0.00019717,2]
[368598601,1751224245974,-460.0,0.00019717,2]
[368598602,1751224245985,-462.37,0.00019718,2]
[368598603,1751224245994,-535.69,0.00019718,2]
[368598604,1751224246003,-598.69,0.00019718,2]
[368598605,1751224246012,-460.0,0.00019718,2]
[368598606,1751224246022,-460.0,0.00019718,2]
[368598607,1751224246031,-1000.37,0.00019718,2]
[368598608,1751224246041,-873.9,0.00019718,2]
[368598609,1751224246050,-768.49,0.00019718,2]
[368598610,1751224246059,-151.0,0.00019718,2]
[368598611,1751224246069,-267.430784,0.00019718,2]
[368598612,1751224246078,-628.32,0.00019719,2]
[368598613,1751224246087,-1102.7981794,0.00019723,2]
[368598614,1751224246096,-265.107121,0.00019723,2]
[368598615,1751224246107,-151.0,0.00019723,2]
[368598616,1751224246116,-318.58271,0.00019726,2]
[368598617,1751224246126,-1150.6246012,0.00019726,2]
[368598618,1751224246135,-177.5384831,0.00019726,2]
[368598619,1751224246144,-306.0,0.00019726,2]
[368598620,1751224246153,-159.291355,0.00019726,2]
[368598621,1751224246162,-177.5384831,0.00019726,2]
[368598622,1751224246171,-177.5384831,0.00019726,2]
[368598623,1751224246181,-318.4334787,0.00019726,2]
[368598624,1751224246190,-588.70279183,0.00019792,2]
[368598625,1751224246199,-151.0,0.00019796,2]
[368598626,1751224246209,-151.0,0.00019796,2]
[368598627,1751224246218,-151.0,0.00019796,2]
[368598628,1751224246227,-151.093005,0.00019796,2]
[368598629,1751224246238,-151.0,0.00019796,2]
[368598630,1751224246247,-5000.0,0.00019796,2]
[368598631,1751224246257,-690.642,0.00019796,2]
[368598632,1751224246266,-151.0,0.00019796,2]
[368598633,1751224246275,-151.0,0.00019796,2]
[368598634,1751224246284,-207.4,0.00019796,2]
[368598635,1751224246294,-291.5243871,0.00019796,2]
[368598636,1751224246303,-3906.52055875,0.00019796,2]
[368598637,1751224246312,-500.0,0.00019796,2]
[368598638,1751224246322,-500.0,0.00019796,2]
[368598639,1751224246331,-500.0,0.00019796,2]
[368598640,1751224246341,-500.0,0.00019796,2]
[368598641,1751224246350,-500.0,0.00019796,2]
[368598642,1751224246359,-500.0,0.00019796,2]
[368598643,1751224246368,-500.0,0.00019796,2]
[368598644,1751224246377,-500.0,0.00019796,2]
[368598645,1751224246387,-500.0,0.00019796,2]
[368598646,1751224246395,-500.0,0.00019796,2]
[368598647,1751224246405,-500.0,0.00019796,2]
[368598648,1751224246414,-500.0,0.00019796,2]
[368598649,1751224246423,-500.0,0.00019796,2]
[368598650,1751224246433,-500.0,0.00019796,2]
[368598651,1751224246442,-500.0,0.00019796,2]
[368598652,1751224246452,-500.0,0.00019796,2]
[368598653,1751224246461,-182.3598853,0.00019796,2]
[368598654,1751224246471,-563.32945425,0.00019796,2]
[368598655,1751224246480,-716.195754,0.00019851,2]
[368598656,1751224246491,-314.0,0.00019898,2]
[368598657,1751224246500,-4571.16910333,0.000199,2]
[368598658,1751224246510,-666.0,0.00019906,2]
[368598659,1751224246519,-153.0,0.00019945,2]
[368598660,1751224246529,-153.0,0.00019945,2]
[368598661,1751224246538,-306.1858028,0.00019973,2]
[368598662,1751224246547,-159.291355,0.00019973,2]
[368598663,1751224246556,-575.3123006,0.00019973,2]
[368598664,1751224246566,-159.291355,0.00019973,2]
[368598666,1751224246576,-153.0,0.00019973,2]
[368598668,1751224246585,-575.3123006,0.00019973,2]
[368598670,1751224246594,-159.291355,0.00019973,2]
[368598672,1751224246603,-575.3123006,0.00019973,2]
[368598673,1751224246613,-575.3123006,0.00019973,2]
[368598674,1751224246623,-3038.72,0.00019988,2]
[368598675,1751224246632,-460.0,0.00019988,2]
[368598676,1751224246642,-3793.9,0.00019988,2]
[368598677,1751224246652,-481.9,0.00019988,2]
[368598678,1751224246661,-552.84,0.00019988,2]
[368598679,1751224246671,-1968.03,0.00019988,2]
[368598680,1751224246680,-460.0,0.00019988,2]
[368598681,1751224246689,-1424.12,0.00019988,2]
[368598682,1751224246699,-460.0,0.00019989,2]
[368598683,1751224246708,-151.0,0.00019989,2]
[368598684,1751224246717,-857.04,0.00019989,2]
[368598685,1751224246726,-460.0,0.00019989,2]
[368598686,1751224246736,-460.0,0.00019989,2]
[368598687,1751224246747,-2854.37,0.00019989,2]
[368598688,1751224246756,-621.65,0.00019989,2]
[368598689,1751224246765,-460.0,0.00019989,2]
[368598690,1751224246775,-631.08,0.00019989,2]
[368598691,1751224246784,-504.29,0.00019989,2]
[368598692,1751224246794,-613.49,0.00019989,2]
[368598693,1751224246803,-1052.36,0.00019989,2]
[368598694,1751224246813,-460.0,0.00019989,2]
[368598695,1751224246823,-494.61,0.00019989,2]
[368598696,1751224246832,-386.32823257,0.00019989,2]
[368598697,1751224246842,-2774.43,0.00019989,2]
[368598698,1751224246851,-3648.95,0.00019989,2]
[368598699,1751224246865,-518.79,0.00019989,2]
[368598700,1751224246874,-2010.22,0.00019989,2]
[368598701,1751224246883,-1159.14,0.00019989,2]
[368598702,1751224246892,-460.0,0.00019989,2]
[368598703,1751224246902,-477.89,0.00019989,2]
[368598704,1751224246912,-460.0,0.00019989,2]
[368598705,1751224246921,-461.32,0.00019989,2]
[368598706,1751224246930,-460.0,0.00019989,2]
[368598707,1751224246940,-460.0,0.00019989,2]
[368598708,1751224246950,-460.0,0.00019989,2]
[368598709,1751224246960,-618.13,0.00019989,2]
[368598710,1751224246969,-476.24,0.00019989,2]
[368598711,1751224246979,-460.0,0.00019989,2]
[368598712,1751224246989,-460.0,0.0001999,2]
[368598713,1751224246998,-460.0,0.0001999,2]
[368598714,1751224247007,-521.75,0.0001999,2]
[368598715,1751224247016,-654.38,0.0001999,2]
[368598716,1751224247026,-791.59,0.0001999,2]
[368598717,1751224247035,-460.0,0.0001999,2]
[368598718,1751224247044,-762.07,0.0001999,2]
[368598719,1751224247053,-460.0,0.0001999,2]
[368598720,1751224247063,-460.0,0.0001999,2]
[368598721,1751224247072,-500.0,0.0001999,2]
[368598722,1751224247209,-500.0,0.0001999,2]
[368598723,1751224247219,-500.0,0.0001999,2]
[368598724,1751224247228,-710.97,0.0001999,2]
[368598725,1751224247239,-1750.91,0.0001999,2]
[368598726,1751224247248,-500.0,0.0001999,2]
[368598727,1751224247258,-460.0,0.0001999,2]
[368598728,1751224247267,-500.0,0.0001999,2]
[368598729,1751224247277,-497.75,0.0001999,2]
[368598730,1751224247287,-460.0,0.0001999,2]
[368598731,1751224247297,-460.0,0.0001999,2]
[368598732,1751224247306,-1683.27,0.0001999,2]
[368598733,1751224247316,-4152.41,0.0001999,2]
[368598734,1751224247326,-591.31,0.0001999,2]
[368598735,1751224247335,-460.0,0.0001999,2]
[368598736,1751224247345,-710.3,0.0001999,2]
[368598737,1751224247354,-500.0,0.0001999,2]
[368598738,1751224247364,-814.36,0.0001999,2]
[368598739,1751224247373,-807.28,0.0001999,2]
[368598740,1751224247382,-4836.22,0.0001999,2]
[368598741,1751224247392,-1061.58,0.0001999,2]
[368598742,1751224247401,-1185.62,0.0001999,2]
[368598743,1751224247410,-151.0,0.00019991,2]
[368598744,1751224247420,-151.0,0.00019991,2]
[368598745,1751224247429,-1401.85,0.00019991,2]
[368598746,1751224247438,-460.0,0.00019991,2]
[368598747,1751224247446,-462.37,0.00019992,2]
[368598748,1751224247455,-598.69,0.00019992,2]
[368598749,1751224247465,-460.0,0.00019992,2]
[368598750,1751224247474,-460.0,0.00019992,2]
[368598751,1751224247483,-1000.37,0.00019992,2]
[368598752,1751224247493,-873.9,0.00019992,2]
[368598753,1751224247503,-768.49,0.00019992,2]
[368598754,1751224247512,-628.32,0.00019993,2]
[368598755,1751224247522,-5888.0,0.00019996,2]
[368598756,1751224247532,-159.0838794,0.0002,2]
[368598757,1751224247541,-300.0,0.0002,2]
[368598758,1751224247550,-160.0,0.0002,3]
[368598759,1751224247560,-420.0,0.00020007,2]
[368598760,1751224247569,-4571.16910333,0.00020072,2]
[368598761,1751224247580,-1490.20409029,0.00020111,2]
[368598762,1751224247589,-1500.0,0.00020111,2]
[368598763,1751224247598,-507.50882752,0.00020111,2]
[368598764,1751224247608,-538.25510388,0.00020111,2]
[368598765,1751224247617,-1500.0,0.00020111,2]
[368598766,1751224247626,-1052.75765332,0.00020111,2]
[368598767,1751224247636,-1500.0,0.00020128,2]
[368598768,1751224247646,-314.0,0.00020141,2]
[368598769,1751224247656,-277.229348,0.00020187,2]
[368598770,1751224247665,-268.18450597,0.00020198,2]
[368598771,1751224247674,-314.0,0.00020202,2]
[368598772,1751224247684,-1500.0,0.00020207,2]
[368598773,1751224247693,-1500.0,0.00020207,2]
[368598774,1751224247703,-1500.0,0.00020207,2]
[368598775,1751224247711,-920.83765646,0.00020215,2]
[368598776,1751224247721,-314.0,0.00020223,2]
[368598777,1751224247731,-1500.0,0.00020229,2]
[368598778,1751224247741,-4571.16910333,0.00020245,2]
[368598779,1751224247751,-732.117071,0.00020247,2]
[368598780,1751224247760,-3038.72,0.00020262,2]
[368598781,1751224247770,-460.0,0.00020262,2]
[368598782,1751224247780,-3793.9,0.00020262,2]
[368598783,1751224247790,-481.9,0.00020262,2]
[368598784,1751224247800,-552.84,0.00020262,2]
[368598785,1751224247810,-1968.03,0.00020262,2]
[368598786,1751224247820,-460.0,0.00020262,2]
[368598787,1751224247829,-1424.12,0.00020262,2]
[368598788,1751224247839,-460.0,0.00020263,2]
[368598789,1751224247848,-857.04,0.00020263,2]
[368598790,1751224247860,-460.0,0.00020263,2]
[368598791,1751224247870,-460.0,0.00020263,2]
[368598792,1751224247879,-2854.37,0.00020263,2]
[368598793,1751224247889,-621.65,0.00020263,2]
[368598794,1751224247899,-460.0,0.00020263,2]
[368598795,1751224247909,-631.08,0.00020263,2]
[368598796,1751224247918,-504.29,0.00020263,2]
[368598797,1751224247928,-613.49,0.00020263,2]
[368598798,1751224247939,-1052.36,0.00020263,2]
[368598799,1751224247948,-460.0,0.00020263,2]
[368598800,1751224247958,-494.61,0.00020263,2]
[368598801,1751224247968,-2774.43,0.00020263,2]
[368598802,1751224247977,-3648.95,0.00020263,2]
[368598803,1751224247988,-518.79,0.00020263,2]
[368598804,1751224247998,-2010.22,0.00020263,2]
[368598805,1751224248008,-1159.14,0.00020263,2]
[368598806,1751224248017,-460.0,0.00020263,2]
[368598807,1751224248027,-477.89,0.00020263,2]
[368598808,1751224248039,-460.0,0.00020263,2]
[368598809,1751224248048,-461.32,0.00020263,2]
[368598810,1751224248057,-460.0,0.00020263,2]